Workbook

Sheet INTRO
B2: TA BILL EXCEL UTILITY
B3: HOW TO USE
C4: राज्य कार्मिकों के यात्रा भत्ता बिल बनाने बाबत इस UTILITY का प्रयोग किया जा सकता है । कार्मिक द्वारा कार्यालय कार्य से की गई लघु यात्राओं का यात्रा भत्ता बिल और स्थानांतरण यात्रा भत्ता बिल बनाने बाबत इस UTILITY का प्रयोग किया जा सकता है किसी प्रकार की तकनीकी कमी पाए जाने पर नीचे दिये गए EMAIL द्वारा अवगत कराने का श्रम करावे।(PLEASE USE LATEST VERSION OF THAT IS OFFICE 2010 AND ABOVE FOR BEST RESULT)
B5: 1. Install Krutidev 010 Hindi font in your computer for view
B6: 1. Data Sheet :- | C6: इस शीट में कार्मिक के नाम ,पद ,मुख्यालय ,श्रेणी ,मूल वेतन इत्यादि के यात्राओं की व दिनांक की एंट्री करनी है। यदि स्थानातरण पर यात्रा भत्ता बिल बनाना है तो row 8 मे YES का चयन करें।यात्रा प्रारम्भ समाप्ती के समय की एंट्री 24 hours फ़ारमैट मे करे जो स्वतः ही 12 hours फ़ारमैट मे बदल जाएगी।
B7: 1 | C7: यदि सार्वजनिक परिवहन के साधन से यात्रा की है तो वास्तविक किराया भरे ।यदि स्वयं के वाहन से यात्रा की है तो यात्रा के प्रकार कॉलम मे ड्रॉपडाउन से यात्रा प्रकार का चयन करें नियमानुसार देय किराया कार्मिक की श्रेणी व वाहन के प्रकार के अनुसार स्वतः गणना होगी।
B8: 2 | C8: ड्यूटी और गंतव्य स्थान के लिए कोड -जयपुर=A, जोधपुर , अजमेर ,कोटा,बीकानेर,उदयपुर =B, अन्य स्थान =C का चयन करें।
B9: 3 | C9: विश्राम भत्ता और बोर्डिंग लॉजिंग के लिए राज्य की राजधानी =A,अन्य स्थान =B कोड का चयन करें।
B10: 4 | C10: बोर्डिंग लॉजिंग दर की गणना Automatic के लिए सेल V12 मे Automatic का चयन या mannual दर भरने के लिए Mannual ड्रॉपडाउन से चयन करें।
B11: 5 | C11: अन्य कोई वास्तविक व्यय देय हो तो W कॉलम मे भरे ।
B12: 6 | C12: विश्राम भत्ता की गणना के लिए मुख्यालय से अनुपस्थिति 6 घंटे से तक 0 एवं 6 घंटे से अधिक से 12 घंटे तक 70%(0.7) और 12 घंटे से अधिक के लिए पूरे दिन की गणना के लिए अंकित करे ।
B14: 2.TA inner SHEET | C14: यह AUTOGENERATED है और प्रिंट लेना है।
B15: 4 outer | C15: outer शीट का प्रिंट TA Bill के पीछे लेना है ।
B16: 3 लघु यात्रा बिल | C16: इस शीट में कार्मिक द्वारा कार्यालय कार्य से की गई लघु यात्राओं की एंट्री करनी है। CRC GRANT में देय TA ग्रांट के तहत यात्रा भत्ता बिल इन शीट से बनाया जा सकता है ।सुविधा हेतु चार शीट दी गई है।
B18: Disclaimer: - | C18: All care has been taken to keep the information upto date and correct and is for educational purpose only. You are encouraged to consult your Accountant or Advisor before taking any decesion based on this calculator
C20: सुधार हेतु सुझाव आमंत्रित है
C26: joshihansraj72@gmail.com

Sheet Data Entry
B5: uke | D5: galjkt tks'kh | G5: cSad [kkrk la[;k & | I5: 01234567891011 | M5: osrueku | P5: lkroka osrueku
B6: in | C6: in | D6: iz/kkukpk;Z | G6: Js.kh | H6: ख | I6: ekg | J6: ekpZ | M6: o"kZ | N6: 2021 | P6: osru :i;s ¼fo'ks"k osru dks NksM+ dj½ csfld | X6: 78000
B7: ftyk | C7: ftyk | D7: Jhxaxkuxj | G7: eq[;ky; | H7: 13 Mhvks,y | L7: inLFkkiu | N7: jktdh; mPp ek/;fed fo|ky; 13Mhvks,y Jhxaxkuxj
D8: यदि स्थानांतरण पर यात्रा भत्ता बिल बनाया जा रहा है तो "YES" अन्यथा "NO" का चयन करें | K8: YES | AG8: बस | AH8: 1 | AI8: x
B9: ;k=k ,oa foJke dk fooj.k | I9: ;k=k dk izdkj | J9: ok;q ;ku] jsy] cl] ;k=k ds fy, ehy HkRrk | M9: M;wVh LFkku | P9: xarO; LFkku | S9: foJke HkRrk | U9: cksfMZax ,oa ykWftax | W9: okLrfod vU; O;; | X9: ;k=k dk iz;kstu o vkns'k Øekad | AG9: रेल | AH9: 2 | AI9: x
B10: izLFkku | F10: vkxeu | M10: t;iqj | O10: A | P10: t;iqj | R10: A | S10: xarO; LFkku dksM | T10: fnu | AG10: वायुयान | AH10: 3 | AI10: x
B11: SN | C11: LFkku | D11: fnukad | E11: le; | F11: LFkku | G11: fnukad | H11: le; | J11: Js.kh fVdV la[;k | K11: nwjh fd-eh- | L11: fdjk;k | M11: tks/kiqj]vtesj] dksVk]chdkusj]mn;iqj | O11: B | P11: tks/kiqj]vtesj] dksVk]chdkusj]mn;iqj | R11: B | S11: राज्य/UT की राजधानी -"A" | U11: fnu | V11: nj | AG11: स्वयं का वाहन(कार) | AH11: 4 | AI11: y
M12: vU; LFkku | O12: C | P12: vU; LFkku | R12: C | S12: अन्य स्थान -"B" | V12: Automatic | AG12: स्वयं का वाहन(मोटर साइकिल ,स्कूटर,मोपेड़ ) | AH12: 5 | AI12: y
B13: 1 | C13: 13Mhvks,y | D13: 2020-10-12 | E13: 09:00:00 | F13: ?kM+lkuk | G13: 2020-10-12 | H13: 10:00:00 | I13: बस | J13: 1 | K13: 45 | L13: 45 | M13: C | P13: C | S13: B | T13: 1.7 | AG13: रिक्शा तांगा,मोटर रिक्शा | AH13: 6 | AI13: y
C14: =IF(F13="","",F13) -> ?kM+lkuk | D14: 2020-10-13 | E14: 10:00:00 | F14: =C13 -> 13Mhvks,y | G14: 2020-10-12 | H14: 11:00:00 | I14: रेल | J14: 1 | K14: 45 | L14: 45 | AG14: साइकिल/पैदल | AH14: 7 | AI14: y
B15: 2 | C15: 13Mhvks,y | D15: 2020-10-12 | E15: 06:00:00 | F15: lwjrx< | G15: 2020-10-12 | H15: 10:00:00 | I15: बस | J15: 1 | K15: 150 | L15: 150 | M15: C | P15: C | S15: B | T15: 1.7 | AG15: सरकारी वाहन | AH15: 8 | AI15: z
C16: =IF(F15="","",F15) -> lwjrx< | D16: 2020-10-12 | E16: 18:00:00 | F16: =C15 -> 13Mhvks,y | G16: 2020-10-12 | H16: 22:00:00 | I16: बस | J16: 1 | K16: 100 | L16: 150
B17: 3 | C17: 13Mhvks,y | D17: 2020-12-15 | E17: 10:00:00 | F17: ?kM+lkuk | G17: 2020-12-15 | H17: 11 | I17: स्वयं का वाहन(कार) | J17: 1 | K17: 45 | M17: C | P17: C | S17: B | T17: 3
C18: =IF(F17="","",F17) -> ?kM+lkuk | D18: 2020-12-15 | E18: 18:00:00 | F18: =C17 -> 13Mhvks,y | G18: 2020-12-15 | H18: 20:00:00 | I18: स्वयं का वाहन(कार) | J18: 1 | K18: 45
B19: 4 | M19: B | P19: C | S19: B | T19: 3
C20: =IF(F19="","",F19) -> 
B21: 5 | M21: C | P21: A | S21: A | T21: 5
C22: =IF(F21="","",F21) -> 

Sheet TA inner
B2: ;k=k HkRrk fcy
B3: uke | C3: ='Data Entry'!D5 -> galjkt tks'kh | M3: cSad [kkrk la[;k & | Q3: ='Data Entry'!I5 -> 01234567891011 | W3: osrueku | X3: ='Data Entry'!P5 -> lkroka osrueku
B4: in | C4: ='Data Entry'!D6 -> iz/kkukpk;Z | K4: Js.kh | L4: ='Data Entry'!H6 -> ख | M4: ekg | N4: ='Data Entry'!J6 -> ekpZ | Q4: o"kZ | R4: ='Data Entry'!N6 -> 2021 | S4: osru :i;s ¼fo'ks"k osru dks NksM+ dj½ csfld | X4: ='Data Entry'!X6 -> 78000 | AB4: प्रातः
B5: ftyk | C5: ='Data Entry'!D7 -> Jhxaxkuxj | G5: eq[;ky; | H5: ='Data Entry'!H7 -> 13 Mhvks,y | M5: inLFkkiu | Q5: ='Data Entry'!N7 -> jktdh; mPp ek/;fed fo|ky; 13Mhvks,y Jhxaxkuxj | AB5: सायं
B6: ;k=k ,oa foJke dk fooj.k | J6: ;k=k dk izdkj | K6: rkaxk @ VSDlh pktZ | L6: ok;q ;ku] jsy] cl] ;k=k ds fy, ehy HkRrk | O6: xarO; 'kgj dks lysDV djsa | S6: foJke dk HkRrk | V6: okLrfod vU; O;; @ LVs vekmaV | W6: dqy ;ksx | X6: ;k=k dk iz;kstu o vkns'k Øekad | Y6: Remark
B7: izLFkku | F7: vkxeu | L7: Js.kh fVdV la[;k | M7: nwjh fd-eh- | N7: fdjk;k
B8: LFkku | C8: fnukad | D8: le; | F8: LFkku | G8: fnukad | H8: le; | S8: fnu | T8: nj | U8: jkf'k
A9: 1 | B9: =IF('Data Entry'!C13="","",'Data Entry'!C13) -> 13Mhvks,y | C9: =IF('Data Entry'!D13="","",'Data Entry'!D13) -> 2020-10-12 | D9: =IF('Data Entry'!E13="","",'Data Entry'!E13) -> 09:00:00 | F9: =IF('Data Entry'!F13="","",'Data Entry'!F13) -> ?kM+lkuk | G9: =IF('Data Entry'!G13="","",'Data Entry'!G13) -> 2020-10-12 | H9: =IF('Data Entry'!H13="","",'Data Entry'!H13) -> 10:00:00 | J9: =IF('Data Entry'!I13="","",'Data Entry'!I13) -> बस | K9: =master!H18 -> 120 | L9: =IF('Data Entry'!J13="","",'Data Entry'!J13) -> 1 | M9: =IF('Data Entry'!K13="","",'Data Entry'!K13) -> 45 | N9: =master!E18 -> 45 | O9: =IF(F9="","",IF('Data Entry'!S13="A",master!$O$15,master!$O$16)) -> अन्य स्थान | U9: =S9*T9 -> 0 | W9: =SUM(K9,N9,U9,V9) -> 165 | X9: =IF('Data Entry'!X13="","",'Data Entry'!X13) -> 
B10: =IF('Data Entry'!C14="","",'Data Entry'!C14) -> ?kM+lkuk | C10: =IF('Data Entry'!D14="","",'Data Entry'!D14) -> 2020-10-13 | D10: =IF('Data Entry'!E14="","",'Data Entry'!E14) -> 10:00:00 | F10: =IF('Data Entry'!F14="","",'Data Entry'!F14) -> 13Mhvks,y | G10: =IF('Data Entry'!G14="","",'Data Entry'!G14) -> 2020-10-12 | H10: =IF('Data Entry'!H14="","",'Data Entry'!H14) -> 11:00:00 | J10: =IF('Data Entry'!I14="","",'Data Entry'!I14) -> रेल | K10: =master!H19 -> 120 | L10: =IF('Data Entry'!J14="","",'Data Entry'!J14) -> 1 | M10: =IF('Data Entry'!K14="","",'Data Entry'!K14) -> 45 | N10: =master!E19 -> 45 | O10: =IF(B10="","",IF('Data Entry'!S14="A",master!$O$15,master!$O$16)) -> अन्य स्थान | S10: =master!J19 -> 1.7 | T10: =master!K19 -> 500 | U10: =S10*T10 -> 850 | V10: =master!W19 -> 0 | W10: =SUM(K10,N10,U10,V10) -> 1015
A11: 2 | B11: =IF('Data Entry'!C15="","",'Data Entry'!C15) -> 13Mhvks,y | C11: =IF('Data Entry'!D15="","",'Data Entry'!D15) -> 2020-10-12 | D11: =IF('Data Entry'!E15="","",'Data Entry'!E15) -> 06:00:00 | F11: =IF('Data Entry'!F15="","",'Data Entry'!F15) -> lwjrx< | G11: =IF('Data Entry'!G15="","",'Data Entry'!G15) -> 2020-10-12 | H11: =IF('Data Entry'!H15="","",'Data Entry'!H15) -> 10:00:00 | J11: =IF('Data Entry'!I15="","",'Data Entry'!I15) -> बस | K11: =master!H20 -> 120 | L11: =IF('Data Entry'!J15="","",'Data Entry'!J15) -> 1 | M11: =IF('Data Entry'!K15="","",'Data Entry'!K15) -> 150 | N11: =master!E20 -> 150 | O11: =IF(F11="","",IF('Data Entry'!S15="A",master!$O$15,master!$O$16)) -> अन्य स्थान | T11: =master!K20 -> 0 | U11: 0 | W11: 270 | X11: =IF('Data Entry'!X15="","",'Data Entry'!X15) -> 
B12: =IF('Data Entry'!C16="","",'Data Entry'!C16) -> lwjrx< | C12: =IF('Data Entry'!D16="","",'Data Entry'!D16) -> 2020-10-12 | D12: =IF('Data Entry'!E16="","",'Data Entry'!E16) -> 18:00:00 | F12: =IF('Data Entry'!F16="","",'Data Entry'!F16) -> 13Mhvks,y | G12: =IF('Data Entry'!G16="","",'Data Entry'!G16) -> 2020-10-12 | H12: =IF('Data Entry'!H16="","",'Data Entry'!H16) -> 22:00:00 | J12: =IF('Data Entry'!I16="","",'Data Entry'!I16) -> बस | K12: =master!H21 -> 120 | L12: =IF('Data Entry'!J16="","",'Data Entry'!J16) -> 1 | M12: =IF('Data Entry'!K16="","",'Data Entry'!K16) -> 100 | N12: =master!E21 -> 150 | O12: =IF(B12="","",IF('Data Entry'!S16="A",master!$O$15,master!$O$16)) -> अन्य स्थान | S12: =master!J21 -> 1.7 | T12: =master!K21 -> 500 | U12: 850 | V12: =master!W21 -> 0 | W12: 1120
A13: 3 | B13: =IF('Data Entry'!C17="","",'Data Entry'!C17) -> 13Mhvks,y | C13: =IF('Data Entry'!D17="","",'Data Entry'!D17) -> 2020-12-15 | D13: =IF('Data Entry'!E17="","",'Data Entry'!E17) -> 10:00:00 | F13: =IF('Data Entry'!F17="","",'Data Entry'!F17) -> ?kM+lkuk | G13: =IF('Data Entry'!G17="","",'Data Entry'!G17) -> 2020-12-15 | H13: =IF('Data Entry'!H17="","",'Data Entry'!H17) -> 11 | J13: =IF('Data Entry'!I17="","",'Data Entry'!I17) -> स्वयं का वाहन(कार) | K13: =master!H22 -> 0 | L13: =IF('Data Entry'!J17="","",'Data Entry'!J17) -> 1 | M13: =IF('Data Entry'!K17="","",'Data Entry'!K17) -> 45 | N13: =master!E22 -> 405 | O13: =IF(F13="","",IF('Data Entry'!S17="A",master!$O$15,master!$O$16)) -> अन्य स्थान | T13: =master!K22 -> 0 | U13: 0 | W13: 405 | X13: =IF('Data Entry'!X17="","",'Data Entry'!X17) -> 
B14: =IF('Data Entry'!C18="","",'Data Entry'!C18) -> ?kM+lkuk | C14: =IF('Data Entry'!D18="","",'Data Entry'!D18) -> 2020-12-15 | D14: =IF('Data Entry'!E18="","",'Data Entry'!E18) -> 18:00:00 | F14: =IF('Data Entry'!F18="","",'Data Entry'!F18) -> 13Mhvks,y | G14: =IF('Data Entry'!G18="","",'Data Entry'!G18) -> 2020-12-15 | H14: =IF('Data Entry'!H18="","",'Data Entry'!H18) -> 20:00:00 | J14: =IF('Data Entry'!I18="","",'Data Entry'!I18) -> स्वयं का वाहन(कार) | K14: =master!H23 -> 0 | L14: =IF('Data Entry'!J18="","",'Data Entry'!J18) -> 1 | M14: =IF('Data Entry'!K18="","",'Data Entry'!K18) -> 45 | N14: =master!E23 -> 405 | O14: =IF(B14="","",IF('Data Entry'!S18="A",master!$O$15,master!$O$16)) -> अन्य स्थान | S14: =master!J23 -> 3 | T14: =master!K23 -> 500 | U14: 1500 | V14: =master!W23 -> 0 | W14: 1905
A15: 4 | B15: =IF('Data Entry'!C19="","",'Data Entry'!C19) ->  | C15: =IF('Data Entry'!D19="","",'Data Entry'!D19) ->  | D15: =IF('Data Entry'!E19="","",'Data Entry'!E19) ->  | F15: =IF('Data Entry'!F19="","",'Data Entry'!F19) ->  | G15: =IF('Data Entry'!G19="","",'Data Entry'!G19) ->  | H15: =IF('Data Entry'!H19="","",'Data Entry'!H19) ->  | J15: =IF('Data Entry'!I19="","",'Data Entry'!I19) ->  | K15: =master!H24 -> 0 | L15: =IF('Data Entry'!J19="","",'Data Entry'!J19) ->  | M15: =IF('Data Entry'!K19="","",'Data Entry'!K19) ->  | N15: =master!E24 -> 0 | O15: =IF(F15="","",IF('Data Entry'!S19="A",master!$O$15,master!$O$16)) ->  | T15: =master!K24 -> 0 | U15: 0 | W15: 0 | X15: =IF('Data Entry'!X19="","",'Data Entry'!X19) ->  | AC15: =IF(J15="vuqcaf/kr okgu","---","") -> 
B16: =IF('Data Entry'!C20="","",'Data Entry'!C20) ->  | C16: =IF('Data Entry'!D20="","",'Data Entry'!D20) ->  | D16: =IF('Data Entry'!E20="","",'Data Entry'!E20) ->  | F16: =IF('Data Entry'!F20="","",'Data Entry'!F20) ->  | G16: =IF('Data Entry'!G20="","",'Data Entry'!G20) ->  | H16: =IF('Data Entry'!H20="","",'Data Entry'!H20) ->  | J16: =IF('Data Entry'!I20="","",'Data Entry'!I20) ->  | K16: =master!H25 -> 0 | L16: =IF('Data Entry'!J20="","",'Data Entry'!J20) ->  | M16: =IF('Data Entry'!K20="","",'Data Entry'!K20) ->  | N16: =master!E25 -> 0 | O16: =IF(B16="","",IF('Data Entry'!S20="A",master!$O$15,master!$O$16)) ->  | S16: =master!J25 -> 0 | T16: =master!K25 -> 0 | U16: 0 | V16: =master!W25 -> 0 | W16: 0
A17: 5 | B17: =IF('Data Entry'!C21="","",'Data Entry'!C21) ->  | C17: =IF('Data Entry'!D21="","",'Data Entry'!D21) ->  | D17: =IF('Data Entry'!E21="","",'Data Entry'!E21) ->  | F17: =IF('Data Entry'!F21="","",'Data Entry'!F21) ->  | G17: =IF('Data Entry'!G21="","",'Data Entry'!G21) ->  | H17: =IF('Data Entry'!H21="","",'Data Entry'!H21) ->  | J17: =IF('Data Entry'!I21="","",'Data Entry'!I21) ->  | K17: =master!H26 -> 0 | L17: =IF('Data Entry'!J21="","",'Data Entry'!J21) ->  | M17: =IF('Data Entry'!K21="","",'Data Entry'!K21) ->  | N17: =master!E26 -> 0 | O17: =IF(F17="","",IF('Data Entry'!S21="A",master!$O$15,master!$O$16)) ->  | T17: =master!K26 -> 0 | U17: =S17*T17 -> 0 | W17: =SUM(K17,N17,U17,V17) -> 0 | X17: =IF('Data Entry'!X21="","",'Data Entry'!X21) -> 
B18: =IF('Data Entry'!C22="","",'Data Entry'!C22) ->  | C18: =IF('Data Entry'!D22="","",'Data Entry'!D22) ->  | D18: =IF('Data Entry'!E22="","",'Data Entry'!E22) ->  | F18: =IF('Data Entry'!F22="","",'Data Entry'!F22) ->  | G18: =IF('Data Entry'!G22="","",'Data Entry'!G22) ->  | H18: =IF('Data Entry'!H22="","",'Data Entry'!H22) ->  | J18: =IF('Data Entry'!I22="","",'Data Entry'!I22) ->  | K18: =master!H27 -> 0 | L18: =IF('Data Entry'!J22="","",'Data Entry'!J22) ->  | M18: =IF('Data Entry'!K22="","",'Data Entry'!K22) ->  | N18: =master!E27 -> 0 | O18: =IF(B18="","",IF('Data Entry'!S22="A",master!$O$15,master!$O$16)) ->  | S18: =master!J27 -> 0 | T18: =master!K27 -> 0 | U18: 0 | V18: =master!W27 -> 0 | W18: 0
B19: ;ksx | K19: =SUM(K9:K18) -> 480 | N19: =SUM(N9:N18) -> 1200 | U19: =SUM(U9:U18) -> 3200 | W19: =ROUND(SUM(W9:W18),0) -> 4880
N20: jkf'k 'kCnksa esa #i;s | R20: =[1]!SpellNumber(W19) -> Rupees Four Thousand Eight Hundred Eighty Only | Y20: ek=
B21: ljdkjh deZpkjh }kjk izek.k i=
B22: 1- izekf.kr fd;k tkrk gSs fd mDr ;k=k eSus oLrqr% dh gS rFkk iwoZ esa eSus bl fcy dk Hkqxrku izkIr ugha fd;k gSA
B23: 2- izekf.kr fd;k tkrk gs fd jfookjksa ;k vU; vodk'k ds fnuksa ] ftuds fy, eSus foJke HkRrs dk nkok fd;k gS] eSa okLrfod #i ls f'kfoj esa FkkA
B24: 3- izekf.kr fd;k tkrk gSa fd eq>s jktdh; ;k LFkkuh; fudk; dh vksj ls dksbZ fu%'kqYd lokjh ugh nh xbZ gSaA
B25: 4- izekf.kr fd;k tkrk gSa fd bl fcy esa nkokd`r jkf'k jktLFkku ;k=k HkÙkk fu;e &1971 ds izko/kkuksa ds vuqlkj gSaA
R26: gLrk{kj dkfeZd
B27: & LFkkukUrj.k ij ;k=k HkRrk nkoksa ds fy, tksfM+, & | N27: & ?kVkb, & | W27: 'kq) jkf'k] tks Hkqxrku ;ksX; gSA
B28: 1- oS;fDrd lkeku dk | D28: 100 | F28: fdyksehVj ds fy, | G28: =master!Q16 -> ₹ 30.00 | H28: dh nj ls | J28: # | K28: =D28*G28 -> 3000 | N28: 1- ;k=k HkRrk vfxze ] ;fn vkgjfr fd;k gks | V28: # | W28: =IFERROR(SUM(K28+K29+K30+W19)-S28,"") -> 15880 | Y28: =IF(W28="","",IF(W28=0,"","/- Rs.")) -> /- Rs.
B29: 2- okgu | J29: # | W29: izfr gLrk{kj fu;U=.k vf/kdkjh
B30: 3- ,d eq'r vuqnku | J30: # | K30: =master!R15 -> 8000 | N30: 2- vkgjfr fd;k gks fcy la[;k o fnukad

Sheet TA outer
B2: fofu;kstu | G2: dk;kZy; v/;{k }kjk izek.k i= | O2: GA 95 | Q2: jktLFkku ljdkj
B3: 1- o"kZ | D3: ds fy, | G3: 1- fooj.k izkIr fd;kA | Q3: ;k=k HkRrk fcy
B4: fofu;kstu | G4: 2- izekf.kr fd;k tkrk gS fd bl fcy esa | O4: fcyuEcj | P4: _______ | U4: ckmpj la[;k | W4: ______
B5: 2- bl fcydh jkf'k dks | G5: 'kkfey dh xbZ jkf'k bl fnukad ls iwoZ | O5: fnukad | P5: _______ | U5: Hkqqxrku dh frfFk | W5: _______
B6: 'kkfey djrs gq, O;; | E6: ------ | F6: ------ | G6: vkgfjr ugha dh xbZ gSA | Q6: ;k=k HkRrk fcy cukus gsrq vuqns'k
B7: 3- 'ks"k | E7: =IF(OR(E3=0,E5=0),"",E3-E5) ->  | F7: =IF(OR(F3=0,F5=0),"",F3-F5) ->  | I7: dk;kZy;k/;{k | O7: 1- bl izi= dk mi;ksx lHkh deZpkfj;ks ds¼jktif=r rFkk vjktif=r½ds ekeyks es fd;k tkosxkA
O8: 2- fofHkUu izdkj dh ;k=kvks ¼;Fkk&jsy`cl ok;q;ku }kjk bR;kfn ½,oeafoJeks dks i`Fkd ls
B9: izfr gLrk{kj | O9: fn[kyk;k tkuk pkfg, dk;ZLFky ls ,;j iksVZ @jsYosLVs'ku@cl LVs.M rd i~gq¡pus ;k
B10: #i;s | C10: _______ | D10: ¼'kCnksa esa½ | E10: ------------------------------------------------------------------------------------------------------------- | O10: blds foijhr ;k=k ds fy, HkRrk ,d gh iafDr es fn[yk;k tkuk pkfg,A
B11: ds fy; ikfjr fd;k x;kA | O11: 3- lk{; nsus gsrq dh xbZ ;k=k ds ekeys es ml U;k;ky; ;k izkf/kdkjh +}kjk fn;k x;k mifLFkfr
O12: izek.k i= layXu djuk pkfg, ftlus ljdkjh deZpkjh dks cqyk;k gSA
B13: fnukad | C13: ____________ | E13: laf{kIr oxhZdj.k | H13: fu;a=.k vf/kdkjh | O13: 4- izFke Jsa.kh ds jsYos fVfdV dh la[;k dk mYys[k dhft;sA cl }kjk ;k=k ds ekeys es ;g
B14: dks"kkxkj dk;kZy; ds mi;ksx gsrq | O14: vafdr dhft, ;g ;k=k lk/kkj.k @Mkd@Mh&yDl@lseh Mh&yDlcl }kjk dh xbZ gSA
B15: cSad@dks"kkxkj | O15: 5- vH;qfDr ds dkWye es fuEu dk mYys[k dhft,s%&
B16: d`Ik;k | C16: #i;s | D16: _______ | E16: ¼'kCnkas easa½ | F16: ------------------------------------------- | I16: dk Hkqxrku djsaA | O16: 1- LFkkukUrj.k ij ;k=k HkRrk ds ekeys es ifjokj ds lnL;ks dk uke ]lEcU/k ],oa vk;qA
O17: 2- ;fn foJke ds nkSjku fu%'kqYd vkokl ,oa Hkkstu iznku fd;k x;k gks rks og rF;A
O18: 3- vU; dksbZ rF; ;k lwpuk ftldk jktLFkku ;k=k HkRRkk fu;eks rFkk fu;e7¼4½ds vUrZxr
H19: dks"kkxkj vf/kdkjh | O19: nkos ij egRoiw.kZ izHkko iM+rk gkSA | P19: egRoiw.kZ izHkko iMrk gks !
B20: tk¡p dh | H20: fnukad | I20: _______ | O20: ys[kk 'kh"kZd | R20: egkys[kkiky dk;kZy; ds mi;ksx ds gsrq
B21: ys[kkdkj | G21: ftyk | H21: _______
R22: #i;s | S22: -----------------------------------------------------------------------------------------
B23: izzzkIrdrkZ dh jlhn | D23: i`"Bkadu | G23: cSad@ukWu cSad dks"kkxkj ds fy, | R23: ds fy, Lohd`rA
B24: fnukad | C24: _______ | D24: d`i;k Jh | E24: ---------------------------------- | R24: #i;s | S24: ------------------------------------------------------------------------------------------
B25: dks Hkqxrku izkIr | D25: dks ftuds uewuss ds gLrk{kj uhps izekf.kr fd;s gS] Hkqxrku djsaA | G25: fnukad | H25: _______ | I25: #i;s | J25: _______ | R25: ds fy, vkifRr dh xbZA
B26: fd;kA | G26: 'kCnksa esa | H26: ----------------------------------------------- | R26: vkifRr dk dkj.k | T26: ----------------------------------------------------------------------
G27: dk Hkqxrku fd;k x;kA | R27: ------------------------------------------------------------------------------------------------------------
B28: gLrk{kj | D28: gLrk{kj | G28: cSad dh eksgj | I28: izcU/kd@dks"kk/;{k | O28: vads{kd | R28: v/kh{kd | U28: jktif=r vf/kdkjh

Sheet master (hidden)
A3: uohu ;k=k HkRrk ,oa nSfud HkRrs dh lkj.kh izHkkoh fnuakd 06-12-2017 7oka osru izkjfEHkd njsa
A4: Js.kh | B4: वेतनमान 2017 में ewy osru | C4: jsy ls ;k=k | D4: lM+d ;k=k | E4: lM+d ;k=k HkRrk | I4: lM+d ;k=k HkRrk | L4: nSfud HkRrk | N4: cksfMZax ,oa ykftx | P4: LFkkukUrj.k
E5: Lo;a ds okgu ls fof’k"V nj ¼izfr fd-eh-½ | I5: M;wVh LFkku ls jsYos LVs'ku]cl LVS.M] gokbZ vMMk rd | L5: leLr jkT;@dsUnz'kkflr izns'kksa dh jkt/kkfu;ksa esa nSfud HkRrk | M5: vU; leLr LFkkuksa ij nSfud HkRrk | N5: leLr jkT;@dsUnz'kkflr izns'kksa dh jkt/kkfu;ksa esa nSfud HkRrk | O5: vU; leLr LFkkuksa ij nSfud HkRrk | P5: ,deq’r jkf’k | Q5: yxst HkkM+k izfr fd-eh-
E6: Loa; dh dkj ls | F6: LdwVj@ eksVj lkbZdy@ eksisM | G6: vU; okgu tSls fjD'kk]rkaxk]eksVj fjD'kk | H6: iSny | I6: fjD’kk@rkaxk@vkVks fjD’kk t;iqj | J6: dksVk@ tks/kiqj@ chdkusj@ mn;iqj | K6: vU; LFkku
A7: 1 | B7: 2 | C7: 3 | D7: 4 | E7: 5 | F7: 6 | G7: 7 | H7: 8 | I7: 9 | J7: 10 | K7: 11 | L7: 12 | M7: 13 | N7: 14 | O7: 15 | P7: 16 | Q7: 17
A8: क | B8: 95000 ,oa vf/kd | C8: dksbZ Hkh Vªsu dksbZ Hkh ,lh Dykl | D8: ,lh MhyDl@lseh MhyDl vij Dykl | E8: 9 | F8: 3 | G8: 6 | I8: 150 | J8: 100 | K8: 60 | L8: 800 | M8: 600 | N8: 3000 | O8: 2000 | P8: 10000 | Q8: 30
A9: ख | B9: 49000&95000 | C9: dqlhZ;ku ,lh ,lh&kkk | D9: ,lh MhyDl@lseh MhyDl vij Dykl | E9: 9 | F9: 3 | G9: 6 | I9: 150 | J9: 100 | K9: 60 | L9: 700 | M9: 500 | N9: 2500 | O9: 1800 | P9: 8000 | Q9: 30
A10: ग | B10: 39000&49000 | C10: f}rh; Lyhij | D10: ,lh MhyDl@lseh fMyDl vij Dykl | F10: 3 | G10: 6 | H10: 2 | I10: 150 | J10: 100 | K10: 60 | L10: 600 | M10: 400 | N10: 2000 | O10: 1500 | P10: 6000 | Q10: 18
A11: घ | B11: 26000&39000 | C11: f}rh; Lyhij | D11: ,lh MhyDl@lseh MhyDl vij Dykl | F11: 3 | G11: 6 | H11: 2 | I11: 150 | J11: 100 | K11: 60 | L11: 550 | M11: 350 | N11: 1500 | O11: 1000 | P11: 5000 | Q11: 14
A12: ड़ | B12: 0&26000 | C12: f}rh; Lyhij | D12: ,lh fMyDl@lseh fMyDl vij Dykl | F12: 3 | G12: 6 | H12: 2 | I12: 150 | J12: 100 | K12: 60 | L12: 350 | M12: 250 | N12: 1000 | O12: 700 | P12: 3500 | Q12: 12
A13: uksV % 15$ fd0eh0 ij gh fojke HkRrk ns; gksxkA 6 ?k.Vs rd fojke HkRrk ‘kwU; jgsxkA 6 ls 12 ?k.Vs rd 50 izfr’kr rFkk 12 ?k.Vs ls vf/kd ;k=k ij gh iw.kZ fojke HkRrk ns; gksxkA
P14: LFkkukUrj.k ;k=k HkRrk | S14: cksfMZax ,oa ykWftax | V14: vU; okLrfod O;; | W14: ;ksx
O15: राज्य/UT की राजधानी | P15: ,deq’r jkf’k | R15: =IF('Data Entry'!K8="YES",VLOOKUP($K$16,ta_master,16,0),"") -> 8000
D16: fdjk;k | F16: rkaxk HkRrk | I16: foJke HkRrk | J16: Js.kh | K16: ='TA inner'!L4 -> ख | O16: अन्य स्थान | P16: yxst HkkM+k nj | Q16: =IF('Data Entry'!K8="YES",VLOOKUP($K$16,ta_master,17,0),"") -> 30 | R16: =D18*Q16 -> 1350 | S16: fnu | T16: nj | U16: jkf'k
B17: izLFkku | C17: vkxeu | D17: nwjh | E17: fdjk;k | F17: M;wVh | G17: xarO; | H17: ;ksx | I17: dksM | J17: fnu | K17: nj | L17: jkf'k | O17: ;k=k izdkj | P17: dksM | Q17: dksM | R17: nj | T17: Automatic
A18: 1 | B18: =IF(OR('Data Entry'!C13="",'Data Entry'!D13="",'Data Entry'!E13=""),"",'Data Entry'!C13) -> 13Mhvks,y | C18: =IF(OR('Data Entry'!F13="",'Data Entry'!G13="",'Data Entry'!H13=""),"",'Data Entry'!F13) -> ?kM+lkuk | D18: ='Data Entry'!K13 -> 45 | E18: =IFERROR(ROUND(IF(Q18="z",0,IF('Data Entry'!L13="",master!D18*master!R18,'Data Entry'!L13)),0),"") -> 45 | F18: =IF('Data Entry'!C13="",0,IF(AND('Data Entry'!$M13="A",Q18="x"),150,IF(AND('Data Entry'!$M13="B",Q18="x"),100,IF(AND('Data Entry'!M13="C",Q18="x"),60,0)))) -> 60 | G18: =IF('Data Entry'!F13="",0,IF(AND('Data Entry'!$P13="A",Q18="x"),150,IF(AND('Data Entry'!$P13="B",Q18="x"),100,IF(AND('Data Entry'!P13="C",Q18="x"),60,0)))) -> 60 | H18: =SUM(F18:G18) -> 120 | O18: ='Data Entry'!I13 -> बस | P18: =IFERROR(VLOOKUP('Data Entry'!$I13,'Data Entry'!$AG$8:$AH$15,2,0),"") -> 1 | Q18: =IFERROR(VLOOKUP('Data Entry'!$I13,'Data Entry'!$AG$8:$AI$15,3,0),"") -> x | R18: =IF($P18=4,VLOOKUP($K$16,ta_master,5,0),IF($P18=5,VLOOKUP($K$16,ta_master,6,0),IF($P18=6,VLOOKUP($K$16,ta_master,7,0),IF($P18=7,VLOOKUP($K$16,ta_master,8,0),0)))) -> 0
B19: =IF(OR('Data Entry'!C14="",'Data Entry'!D14="",'Data Entry'!E14=""),"",'Data Entry'!C14) -> ?kM+lkuk | C19: =IF(OR('Data Entry'!F14="",'Data Entry'!G14="",'Data Entry'!H14=""),"",'Data Entry'!F14) -> 13Mhvks,y | D19: ='Data Entry'!K14 -> 45 | E19: =IFERROR(ROUND(IF(Q19="z",0,IF('Data Entry'!L14="",master!D19*master!R19,'Data Entry'!L14)),0),"") -> 45 | F19: =IF('Data Entry'!C14="",0,IF(AND('Data Entry'!$M13="A",Q19="x"),150,IF(AND('Data Entry'!$M13="B",Q19="x"),100,IF(AND('Data Entry'!M13="C",Q19="x"),60,0)))) -> 60 | G19: =IF('Data Entry'!F14="",0,IF(AND('Data Entry'!$P13="A",Q19="x"),150,IF(AND('Data Entry'!$P13="B",Q19="x"),100,IF(AND('Data Entry'!P13="C",Q19="x"),60,0)))) -> 60 | H19: =SUM(F19:G19) -> 120 | I19: ='Data Entry'!S13 -> B | J19: =IF(OR(B18="",B19="",C19="",'Data Entry'!T13<0.7),0,'Data Entry'!T13) -> 1.7 | K19: =IF(J19>0,IF(I19="A",VLOOKUP($K$16,ta_master,12,0),IF(I19="B",(VLOOKUP($K$16,ta_master,13,0)),0)),0) -> 500 | L19: =J19*K19 -> 850 | O19: ='Data Entry'!I14 -> रेल | P19: =IFERROR(VLOOKUP('Data Entry'!$I14,'Data Entry'!$AG$8:$AH$15,2,0),"") -> 2 | Q19: =IFERROR(VLOOKUP('Data Entry'!$I14,'Data Entry'!$AG$8:$AI$15,3,0),"") -> x | R19: 0 | S19: ='Data Entry'!U13 -> 0 | T19: =IF('Data Entry'!$V$12=master!$T$17,IF(I19="A",VLOOKUP(master!$K$16,ta_master,14,0),VLOOKUP(master!$K$16,ta_master,15,0)),'Data Entry'!V13) -> 1800 | U19: =ROUND(S19*T19,0) -> 0 | V19: ='Data Entry'!W13 -> 0 | W19: =U19+V19 -> 0
A20: 2 | B20: =IF(OR('Data Entry'!C15="",'Data Entry'!D15="",'Data Entry'!E15=""),"",'Data Entry'!C15) -> 13Mhvks,y | C20: =IF(OR('Data Entry'!F15="",'Data Entry'!G15="",'Data Entry'!H15=""),"",'Data Entry'!F15) -> lwjrx< | D20: ='Data Entry'!K15 -> 150 | E20: =IFERROR(ROUND(IF(Q20="z",0,IF('Data Entry'!L15="",master!D20*master!R20,'Data Entry'!L15)),0),"") -> 150 | F20: =IF('Data Entry'!C15="",0,IF(AND('Data Entry'!$M15="A",Q20="x"),150,IF(AND('Data Entry'!$M15="B",Q20="x"),100,IF(AND('Data Entry'!M15="C",Q20="x"),60,0)))) -> 60 | G20: =IF('Data Entry'!F15="",0,IF(AND('Data Entry'!$P15="A",Q20="x"),150,IF(AND('Data Entry'!$P15="B",Q20="x"),100,IF(AND('Data Entry'!P15="C",Q20="x"),60,0)))) -> 60 | H20: =SUM(F20:G20) -> 120 | O20: ='Data Entry'!I15 -> बस | P20: =IFERROR(VLOOKUP('Data Entry'!$I15,'Data Entry'!$AG$8:$AH$15,2,0),"") -> 1 | Q20: =IFERROR(VLOOKUP('Data Entry'!$I15,'Data Entry'!$AG$8:$AI$15,3,0),"") -> x | R20: 0
B21: =IF(OR('Data Entry'!C16="",'Data Entry'!D16="",'Data Entry'!E16=""),"",'Data Entry'!C16) -> lwjrx< | C21: =IF(OR('Data Entry'!F16="",'Data Entry'!G16="",'Data Entry'!H16=""),"",'Data Entry'!F16) -> 13Mhvks,y | D21: ='Data Entry'!K16 -> 100 | E21: =IFERROR(ROUND(IF(Q21="z",0,IF('Data Entry'!L16="",master!D21*master!R21,'Data Entry'!L16)),0),"") -> 150 | F21: =IF('Data Entry'!C16="",0,IF(AND('Data Entry'!$M15="A",Q21="x"),150,IF(AND('Data Entry'!$M15="B",Q21="x"),100,IF(AND('Data Entry'!M15="C",Q21="x"),60,0)))) -> 60 | G21: =IF('Data Entry'!F16="",0,IF(AND('Data Entry'!$P15="A",Q21="x"),150,IF(AND('Data Entry'!$P15="B",Q21="x"),100,IF(AND('Data Entry'!P15="C",Q21="x"),60,0)))) -> 60 | H21: =SUM(F21:G21) -> 120 | I21: ='Data Entry'!S15 -> B | J21: =IF(OR(B20="",B21="",C21="",'Data Entry'!T15<0.7),0,'Data Entry'!T15) -> 1.7 | K21: =IF(J21>0,IF(I21="A",VLOOKUP($K$16,ta_master,12,0),IF(I21="B",(VLOOKUP($K$16,ta_master,13,0)),0)),0) -> 500 | L21: =J21*K21 -> 850 | O21: ='Data Entry'!I16 -> बस | P21: =IFERROR(VLOOKUP('Data Entry'!$I16,'Data Entry'!$AG$8:$AH$15,2,0),"") -> 1 | Q21: =IFERROR(VLOOKUP('Data Entry'!$I16,'Data Entry'!$AG$8:$AI$15,3,0),"") -> x | R21: 0 | S21: ='Data Entry'!U15 -> 0 | T21: =IF('Data Entry'!$V$12=master!$T$17,IF(I21="A",VLOOKUP(master!$K$16,ta_master,14,0),VLOOKUP(master!$K$16,ta_master,15,0)),'Data Entry'!V15) -> 1800 | U21: =ROUND(S21*T21,0) -> 0 | V21: ='Data Entry'!W15 -> 0 | W21: =U21+V21 -> 0
A22: 3 | B22: =IF(OR('Data Entry'!C17="",'Data Entry'!D17="",'Data Entry'!E17=""),"",'Data Entry'!C17) -> 13Mhvks,y | C22: =IF(OR('Data Entry'!F17="",'Data Entry'!G17="",'Data Entry'!H17=""),"",'Data Entry'!F17) -> ?kM+lkuk | D22: ='Data Entry'!K17 -> 45 | E22: =IFERROR(ROUND(IF(Q22="z",0,IF('Data Entry'!L17="",master!D22*master!R22,'Data Entry'!L17)),0),"") -> 405 | F22: =IF('Data Entry'!C17="",0,IF(AND('Data Entry'!$M17="A",Q22="x"),150,IF(AND('Data Entry'!$M17="B",Q22="x"),100,IF(AND('Data Entry'!M17="C",Q22="x"),60,0)))) -> 0 | G22: =IF('Data Entry'!F17="",0,IF(AND('Data Entry'!$P17="A",Q22="x"),150,IF(AND('Data Entry'!$P17="B",Q22="x"),100,IF(AND('Data Entry'!P17="C",Q22="x"),60,0)))) -> 0 | H22: =SUM(F22:G22) -> 0 | O22: ='Data Entry'!I17 -> स्वयं का वाहन(कार) | P22: =IFERROR(VLOOKUP('Data Entry'!$I17,'Data Entry'!$AG$8:$AH$15,2,0),"") -> 4 | Q22: =IFERROR(VLOOKUP('Data Entry'!$I17,'Data Entry'!$AG$8:$AI$15,3,0),"") -> y | R22: 9
B23: =IF(OR('Data Entry'!C18="",'Data Entry'!D18="",'Data Entry'!E18=""),"",'Data Entry'!C18) -> ?kM+lkuk | C23: =IF(OR('Data Entry'!F18="",'Data Entry'!G18="",'Data Entry'!H18=""),"",'Data Entry'!F18) -> 13Mhvks,y | D23: ='Data Entry'!K18 -> 45 | E23: =IFERROR(ROUND(IF(Q23="z",0,IF('Data Entry'!L18="",master!D23*master!R23,'Data Entry'!L18)),0),"") -> 405 | F23: =IF('Data Entry'!C18="",0,IF(AND('Data Entry'!$M17="A",Q23="x"),150,IF(AND('Data Entry'!$M17="B",Q23="x"),100,IF(AND('Data Entry'!M17="C",Q23="x"),60,0)))) -> 0 | G23: =IF('Data Entry'!F18="",0,IF(AND('Data Entry'!$P17="A",Q23="x"),150,IF(AND('Data Entry'!$P17="B",Q23="x"),100,IF(AND('Data Entry'!P17="C",Q23="x"),60,0)))) -> 0 | H23: 0 | I23: ='Data Entry'!S17 -> B | J23: =IF(OR(B22="",B23="",C23="",'Data Entry'!T17<0.7),0,'Data Entry'!T17) -> 3 | K23: =IF(J23>0,IF(I23="A",VLOOKUP($K$16,ta_master,12,0),IF(I23="B",(VLOOKUP($K$16,ta_master,13,0)),0)),0) -> 500 | L23: =J23*K23 -> 1500 | O23: ='Data Entry'!I18 -> स्वयं का वाहन(कार) | P23: =IFERROR(VLOOKUP('Data Entry'!$I18,'Data Entry'!$AG$8:$AH$15,2,0),"") -> 4 | Q23: =IFERROR(VLOOKUP('Data Entry'!$I18,'Data Entry'!$AG$8:$AI$15,3,0),"") -> y | R23: 9 | S23: ='Data Entry'!U17 -> 0 | T23: =IF('Data Entry'!$V$12=master!$T$17,IF(I23="A",VLOOKUP(master!$K$16,ta_master,14,0),VLOOKUP(master!$K$16,ta_master,15,0)),'Data Entry'!V17) -> 1800 | U23: =ROUND(S23*T23,0) -> 0 | V23: ='Data Entry'!W17 -> 0 | W23: =U23+V23 -> 0
A24: 4 | B24: =IF(OR('Data Entry'!C19="",'Data Entry'!D19="",'Data Entry'!E19=""),"",'Data Entry'!C19) ->  | C24: =IF(OR('Data Entry'!F19="",'Data Entry'!G19="",'Data Entry'!H19=""),"",'Data Entry'!F19) ->  | D24: ='Data Entry'!K19 -> 0 | E24: =IFERROR(ROUND(IF(Q24="z",0,IF('Data Entry'!L19="",master!D24*master!R24,'Data Entry'!L19)),0),"") -> 0 | F24: =IF('Data Entry'!C19="",0,IF(AND('Data Entry'!$M19="A",Q24="x"),150,IF(AND('Data Entry'!$M19="B",Q24="x"),100,IF(AND('Data Entry'!M19="C",Q24="x"),60,0)))) -> 0 | G24: =IF('Data Entry'!F19="",0,IF(AND('Data Entry'!$P19="A",Q24="x"),150,IF(AND('Data Entry'!$P19="B",Q24="x"),100,IF(AND('Data Entry'!P19="C",Q24="x"),60,0)))) -> 0 | H24: 0 | O24: ='Data Entry'!I19 -> 0 | P24: =IFERROR(VLOOKUP('Data Entry'!$I19,'Data Entry'!$AG$8:$AH$15,2,0),"") ->  | Q24: =IFERROR(VLOOKUP('Data Entry'!$I19,'Data Entry'!$AG$8:$AI$15,3,0),"") ->  | R24: 0
B25: =IF(OR('Data Entry'!C20="",'Data Entry'!D20="",'Data Entry'!E20=""),"",'Data Entry'!C20) ->  | C25: =IF(OR('Data Entry'!F20="",'Data Entry'!G20="",'Data Entry'!H20=""),"",'Data Entry'!F20) ->  | D25: ='Data Entry'!K20 -> 0 | E25: =IFERROR(ROUND(IF(Q25="z",0,IF('Data Entry'!L20="",master!D25*master!R25,'Data Entry'!L20)),0),"") -> 0 | F25: =IF('Data Entry'!C20="",0,IF(AND('Data Entry'!$M19="A",Q25="x"),150,IF(AND('Data Entry'!$M19="B",Q25="x"),100,IF(AND('Data Entry'!M19="C",Q25="x"),60,0)))) -> 0 | G25: =IF('Data Entry'!F20="",0,IF(AND('Data Entry'!$P19="A",Q25="x"),150,IF(AND('Data Entry'!$P19="B",Q25="x"),100,IF(AND('Data Entry'!P19="C",Q25="x"),60,0)))) -> 0 | H25: 0 | I25: ='Data Entry'!S19 -> B | J25: =IF(OR(B24="",B25="",C25="",'Data Entry'!T19<0.7),0,'Data Entry'!T19) -> 0 | K25: =IF(J25>0,IF(I25="A",VLOOKUP($K$16,ta_master,12,0),IF(I25="B",(VLOOKUP($K$16,ta_master,13,0)),0)),0) -> 0 | L25: =J25*K25 -> 0 | O25: ='Data Entry'!I20 -> 0 | P25: =IFERROR(VLOOKUP('Data Entry'!$I20,'Data Entry'!$AG$8:$AH$15,2,0),"") ->  | Q25: =IFERROR(VLOOKUP('Data Entry'!$I20,'Data Entry'!$AG$8:$AI$15,3,0),"") ->  | R25: 0 | S25: ='Data Entry'!U19 -> 0 | T25: =IF('Data Entry'!$V$12=master!$T$17,IF(I25="A",VLOOKUP(master!$K$16,ta_master,14,0),VLOOKUP(master!$K$16,ta_master,15,0)),'Data Entry'!V19) -> 1800 | U25: =ROUND(S25*T25,0) -> 0 | V25: ='Data Entry'!W19 -> 0 | W25: =U25+V25 -> 0
A26: 5 | B26: =IF(OR('Data Entry'!C21="",'Data Entry'!D21="",'Data Entry'!E21=""),"",'Data Entry'!C21) ->  | C26: =IF(OR('Data Entry'!F21="",'Data Entry'!G21="",'Data Entry'!H21=""),"",'Data Entry'!F21) ->  | D26: ='Data Entry'!K21 -> 0 | E26: =IFERROR(ROUND(IF(Q26="z",0,IF('Data Entry'!L21="",master!D26*master!R26,'Data Entry'!L21)),0),"") -> 0 | F26: =IF('Data Entry'!C21="",0,IF(AND('Data Entry'!$M21="A",Q26="x"),150,IF(AND('Data Entry'!$M21="B",Q26="x"),100,IF(AND('Data Entry'!M21="C",Q26="x"),60,0)))) -> 0 | G26: =IF('Data Entry'!F21="",0,IF(AND('Data Entry'!$P21="A",Q26="x"),150,IF(AND('Data Entry'!$P21="B",Q26="x"),100,IF(AND('Data Entry'!P21="C",Q26="x"),60,0)))) -> 0 | H26: 0 | O26: ='Data Entry'!I21 -> 0 | P26: =IFERROR(VLOOKUP('Data Entry'!$I21,'Data Entry'!$AG$8:$AH$15,2,0),"") ->  | Q26: =IFERROR(VLOOKUP('Data Entry'!$I21,'Data Entry'!$AG$8:$AI$15,3,0),"") ->  | R26: 0
B27: =IF(OR('Data Entry'!C22="",'Data Entry'!D22="",'Data Entry'!E22=""),"",'Data Entry'!C22) ->  | C27: =IF(OR('Data Entry'!F22="",'Data Entry'!G22="",'Data Entry'!H22=""),"",'Data Entry'!F22) ->  | D27: ='Data Entry'!K22 -> 0 | E27: =IFERROR(ROUND(IF(Q27="z",0,IF('Data Entry'!L22="",master!D27*master!R27,'Data Entry'!L22)),0),"") -> 0 | F27: =IF('Data Entry'!C22="",0,IF(AND('Data Entry'!$M21="A",Q27="x"),150,IF(AND('Data Entry'!$M21="B",Q27="x"),100,IF(AND('Data Entry'!M21="C",Q27="x"),60,0)))) -> 0 | G27: =IF('Data Entry'!F22="",0,IF(AND('Data Entry'!$P21="A",Q27="x"),150,IF(AND('Data Entry'!$P21="B",Q27="x"),100,IF(AND('Data Entry'!P21="C",Q27="x"),60,0)))) -> 0 | H27: 0 | I27: ='Data Entry'!S21 -> A | J27: =IF(OR(B26="",B27="",C27="",'Data Entry'!T21<0.7),0,'Data Entry'!T21) -> 0 | K27: =IF(J27>0,IF(I27="A",VLOOKUP($K$16,ta_master,12,0),IF(I27="B",(VLOOKUP($K$16,ta_master,13,0)),0)),0) -> 0 | L27: =J27*K27 -> 0 | O27: ='Data Entry'!I22 -> 0 | P27: =IFERROR(VLOOKUP('Data Entry'!$I22,'Data Entry'!$AG$8:$AH$15,2,0),"") ->  | Q27: =IFERROR(VLOOKUP('Data Entry'!$I22,'Data Entry'!$AG$8:$AI$15,3,0),"") ->  | R27: 0 | S27: ='Data Entry'!U21 -> 0 | T27: =IF('Data Entry'!$V$12=master!$T$17,IF(I27="A",VLOOKUP(master!$K$16,ta_master,14,0),VLOOKUP(master!$K$16,ta_master,15,0)),'Data Entry'!V21) -> 2500 | U27: =ROUND(S27*T27,0) -> 0 | V27: ='Data Entry'!W21 -> 0 | W27: =U27+V27 -> 0
A28: 6
A30: 7

Sheet लघु यात्रा बिल(1)
B2: y?kq ;k=k fcy
B3: uke | E3: Js.kh | F3: ख | H3: fcy dk en
B4: in | E4: ewy osru | F4: 75700
B5: dk;kZy;
B6: fnukad | C6: LFkkuksa dk fooj.k ftuds e/; LFkkuh; y?kq ;k=k dh xbZ | E6: ;k=k dk iz;kstu | F6: Lo;a dk okgu dk izdkj | G6: yxHkx nwjh fdeh esa | H6: nj jkf'k izfr fdeh | I6: jkf'k
C7: izLFkku | D7: vkxeu | U7: कार | V7: 1
B8: 2019-04-24 | C8: 13Mhvks,y | D8: 6Mhvks,y | E8: 'kkyk lEcyu | F8: मोटर साइकिल ,स्कूटर,मोपेड़ | G8: 8 | H8: =IF(OR(B8="",C8="",D8=""),"",IF($F$3="","श्रेणी चुने ",IF(K8=1,VLOOKUP($F$3,ta_master,5,0),IF(K8=2,VLOOKUP($F$3,ta_master,6,0),IF(K8=3,VLOOKUP($F$3,ta_master,7,0),IF(K8=4,VLOOKUP($F$3,ta_master,8,0),"वाहन प्रकार चुनें")))))) -> 3 | I8: =IFERROR(G8*H8,"") -> ₹24.00 | K8: =IF(F8="","",VLOOKUP(F8,$U$7:$V$10,2,0)) -> 2 | U8: मोटर साइकिल ,स्कूटर,मोपेड़ | V8: 2
B9: 2019-04-24 | C9: =D8 -> 6Mhvks,y | D9: =C8 -> 13Mhvks,y | E9: 'kkyk lEcyu | F9: कार | G9: 8 | H9: 9 | I9: =IFERROR(G9*H9,"") -> ₹72.00 | K9: =IF(F9="","",VLOOKUP(F9,$U$7:$V$10,2,0)) -> 1 | U9: रिक्शा तांगा,मोटर रिक्शा | V9: 3
U10: साइकिल/पैदल | V10: 4
G28: 4
B30: ;ksx | G30: =SUM(G8:G29)&" Km" -> 20 Km | H30: =ROUND(SUM(I8:I29),0) -> ₹ 96.00
F31: =[1]!SpellNumber(H30) -> Rupees NinetySix Only
B32: izekf.kr fd;k tkrk gS fd eSus | F32: }kjk | H32: fdeh ;k=k
B33: tSlk dh mYysf[kr gS M;wVh LFkku ls dk;kZy; ds dk;Z ls okLro esa dh gSA
G34: dkfeZd ds gLrk{kj
C35: fu;U=.k vf/kdkjh }kjk izekf.kr
E36: inuke ,oa eksgj

Sheet लघु यात्रा बिल (2)
B2: y?kq ;k=k fcy
B3: uke | C3: ='Data Entry'!D5 -> galjkt tks'kh | E3: Js.kh | F3: ख | H3: fcy dk en
B4: in | C4: ='Data Entry'!D6 -> iz/kkukpk;Z | E4: ewy osru | F4: 75700
B5: dk;kZy; | C5: ='Data Entry'!N7 -> jktdh; mPp ek/;fed fo|ky; 13Mhvks,y Jhxaxkuxj
B6: fnukad | C6: LFkkuksa dk fooj.k ftuds e/; LFkkuh; y?kq ;k=k dh xbZ | E6: ;k=k dk iz;kstu | F6: Lo;a dk okgu dk izdkj | G6: yxHkx nwjh fdeh esa | H6: nj jkf'k izfr fdeh | I6: jkf'k
C7: izLFkku | D7: vkxeu | U7: कार | V7: 1
B8: 2019-04-24 | C8: 13Mhvks,y | D8: 6Mhvks,y | E8: 'kkyk lEcyu | F8: मोटर साइकिल ,स्कूटर,मोपेड़ | G8: 8 | H8: =IF(OR(B8="",C8="",D8=""),"",IF($F$3="","श्रेणी चुने ",IF(K8=1,VLOOKUP($F$3,ta_master,5,0),IF(K8=2,VLOOKUP($F$3,ta_master,6,0),IF(K8=3,VLOOKUP($F$3,ta_master,7,0),IF(K8=4,VLOOKUP($F$3,ta_master,8,0),"वाहन प्रकार चुनें")))))) -> 3 | I8: =IFERROR(G8*H8,"") -> ₹24.00 | K8: =IF(F8="","",VLOOKUP(F8,$U$7:$V$10,2,0)) -> 2 | U8: मोटर साइकिल ,स्कूटर,मोपेड़ | V8: 2
B9: 2019-04-24 | C9: =D8 -> 6Mhvks,y | D9: =C8 -> 13Mhvks,y | E9: 'kkyk lEcyu | F9: कार | G9: 8 | H9: 9 | I9: =IFERROR(G9*H9,"") -> ₹72.00 | K9: =IF(F9="","",VLOOKUP(F9,$U$7:$V$10,2,0)) -> 1 | U9: रिक्शा तांगा,मोटर रिक्शा | V9: 3
U10: साइकिल/पैदल | V10: 4
B30: ;ksx | G30: =SUM(G8:G29)&" Km" -> 16 Km | H30: =ROUND(SUM(I8:I29),0) -> ₹ 96.00
F31: =[1]!SpellNumber(H30) -> Rupees NinetySix Only
B32: izekf.kr fd;k tkrk gS fd eSus | F32: }kjk | H32: fdeh ;k=k
B33: tSlk dh mYysf[kr gS M;wVh LFkku ls dk;kZy; ds dk;Z ls okLro esa dh gSA
G34: dkfeZd ds gLrk{kj
C35: fu;U=.k vf/kdkjh }kjk izekf.kr
E36: inuke ,oa eksgj

Sheet लघु यात्रा बिल (3)
B2: y?kq ;k=k fcy
B3: uke | C3: ='Data Entry'!D5 -> galjkt tks'kh | E3: Js.kh | F3: ख | H3: fcy dk en
B4: in | C4: ='Data Entry'!D6 -> iz/kkukpk;Z | E4: ewy osru | F4: 75700
B5: dk;kZy; | C5: ='Data Entry'!N7 -> jktdh; mPp ek/;fed fo|ky; 13Mhvks,y Jhxaxkuxj
B6: fnukad | C6: LFkkuksa dk fooj.k ftuds e/; LFkkuh; y?kq ;k=k dh xbZ | E6: ;k=k dk iz;kstu | F6: Lo;a dk okgu dk izdkj | G6: yxHkx nwjh fdeh esa | H6: nj jkf'k izfr fdeh | I6: jkf'k
C7: izLFkku | D7: vkxeu | U7: कार | V7: 1
B8: 2019-04-24 | C8: 13Mhvks,y | D8: 6Mhvks,y | E8: 'kkyk lEcyu | F8: मोटर साइकिल ,स्कूटर,मोपेड़ | G8: 8 | H8: =IF(OR(B8="",C8="",D8=""),"",IF($F$3="","श्रेणी चुने ",IF(K8=1,VLOOKUP($F$3,ta_master,5,0),IF(K8=2,VLOOKUP($F$3,ta_master,6,0),IF(K8=3,VLOOKUP($F$3,ta_master,7,0),IF(K8=4,VLOOKUP($F$3,ta_master,8,0),"वाहन प्रकार चुनें")))))) -> 3 | I8: =IFERROR(G8*H8,"") -> ₹24.00 | K8: =IF(F8="","",VLOOKUP(F8,$U$7:$V$10,2,0)) -> 2 | U8: मोटर साइकिल ,स्कूटर,मोपेड़ | V8: 2
B9: 2019-04-24 | C9: =D8 -> 6Mhvks,y | D9: =C8 -> 13Mhvks,y | E9: 'kkyk lEcyu | F9: कार | G9: 8 | H9: 9 | I9: =IFERROR(G9*H9,"") -> ₹72.00 | K9: =IF(F9="","",VLOOKUP(F9,$U$7:$V$10,2,0)) -> 1 | U9: रिक्शा तांगा,मोटर रिक्शा | V9: 3
U10: साइकिल/पैदल | V10: 4
B30: ;ksx | G30: =SUM(G8:G29)&" Km" -> 16 Km | H30: =ROUND(SUM(I8:I29),0) -> ₹ 96.00
F31: =[1]!SpellNumber(H30) -> Rupees NinetySix Only
B32: izekf.kr fd;k tkrk gS fd eSus | F32: }kjk | H32: fdeh ;k=k
B33: tSlk dh mYysf[kr gS M;wVh LFkku ls dk;kZy; ds dk;Z ls okLro esa dh gSA
G34: dkfeZd ds gLrk{kj
C35: fu;U=.k vf/kdkjh }kjk izekf.kr
E36: inuke ,oa eksgj

Sheet लघु यात्रा बिल (4)
B2: y?kq ;k=k fcy
B3: uke | E3: Js.kh | F3: ख | H3: fcy dk en
B4: in | C4: ='Data Entry'!D6 -> iz/kkukpk;Z | E4: ewy osru | F4: 75700
B5: dk;kZy; | C5: ='Data Entry'!N7 -> jktdh; mPp ek/;fed fo|ky; 13Mhvks,y Jhxaxkuxj
B6: fnukad | C6: LFkkuksa dk fooj.k ftuds e/; LFkkuh; y?kq ;k=k dh xbZ | E6: ;k=k dk iz;kstu | F6: Lo;a dk okgu dk izdkj | G6: yxHkx nwjh fdeh esa | H6: nj jkf'k izfr fdeh | I6: jkf'k
C7: izLFkku | D7: vkxeu | U7: कार | V7: 1
B8: 2019-04-24 | C8: 13Mhvks,y | D8: 6Mhvks,y | E8: 'kkyk lEcyu | F8: मोटर साइकिल ,स्कूटर,मोपेड़ | G8: 10 | H8: =IF(OR(B8="",C8="",D8=""),"",IF($F$3="","श्रेणी चुने ",IF(K8=1,VLOOKUP($F$3,ta_master,5,0),IF(K8=2,VLOOKUP($F$3,ta_master,6,0),IF(K8=3,VLOOKUP($F$3,ta_master,7,0),IF(K8=4,VLOOKUP($F$3,ta_master,8,0),"वाहन प्रकार चुनें")))))) -> 3 | I8: =IFERROR(G8*H8,"") -> ₹30.00 | K8: =IF(F8="","",VLOOKUP(F8,$U$7:$V$10,2,0)) -> 2 | U8: मोटर साइकिल ,स्कूटर,मोपेड़ | V8: 2
F9: कार | G9: 8 | I9: =IFERROR(G9*H9,"") ->  | K9: =IF(F9="","",VLOOKUP(F9,$U$7:$V$10,2,0)) -> 1 | U9: रिक्शा तांगा,मोटर रिक्शा | V9: 3
U10: साइकिल/पैदल | V10: 4
G28: 4
B30: ;ksx | G30: =SUM(G8:G29)&" Km" -> 22 Km | H30: =ROUND(SUM(I8:I29),0) -> ₹ 30.00
F31: =[1]!SpellNumber(H30) -> Rupees Thirty Only
B32: izekf.kr fd;k tkrk gS fd eSus | F32: }kjk | H32: fdeh ;k=k
B33: tSlk dh mYysf[kr gS M;wVh LFkku ls dk;kZy; ds dk;Z ls okLro esa dh gSA
G34: dkfeZd ds gLrk{kj
C35: fu;U=.k vf/kdkjh }kjk izekf.kr
E36: inuke ,oa eksgj
